bitfinex-derivatives/quotes_SOLF0:USTF0_20250328
["timestamp","ask_amount","ask_price","bid_price","bid_amount"]
[1743150104103,28.96,132.34,132.3,11.5057]
[1743150104802,7.5603,132.32,132.3,11.5057]
[1743150105001,7.5603,132.32,132.31,0.04769904]
[1743150106504,7.61604084,132.33,132.31,0.04769904]
[1743150107605,7.5603,132.32,132.31,0.04769904]
[1743150107805,0.05604084,132.33,132.31,0.04769904]
[1743150108405,7.5603,132.32,132.31,0.04769904]
[1743150108815,0.05604084,132.33,132.31,0.04769904]
[1743150109807,7.5603,132.32,132.31,0.04769904]
[1743150115114,7.5603,132.32,132.31,9.904e-05]
[1743150118405,7.5636,132.27,132.24,9.6393]
[1743150118607,36.5236,132.27,132.24,2.0747]
[1743150118810,28.96,132.27,132.24,2.0747]
[1743150119114,15.1145,132.38,132.24,2.0747]
[1743150119315,44.07598652,132.37,132.28,15.11598652]
[1743150119511,0.05210599,132.32,132.3,0.05216058]
[1743150119706,28.96,132.33,132.3,0.05216058]
[1743150119907,0.04984702,132.32,132.3,0.05216058]
[1743150120215,0.04984702,132.32,132.31,7.5608]
[1743150122305,0.04984702,132.32,132.3,7.61336058]
[1743150123417,0.04984702,132.32,132.3,0.05216058]
[1743150123418,28.96,132.31,132.3,0.05216058]
[1743150124818,36.5208,132.31,132.3,0.05216058]
[1743150127818,28.96,132.31,132.3,0.05216058]
[1743150128013,28.96,132.31,132.3,6.058e-05]
[1743150128222,44.07598652,132.31,132.3,6.058e-05]
[1743150128426,51.63678652,132.31,132.3,6.058e-05]
[1743150129023,7.5637,132.26,132.25,31.06916669]
[1743150130129,7.5643,132.25,132.24,2.13098027]
[1743150130325,0.04802195,132.27,132.24,2.13098027]
[1743150130625,0.04802195,132.27,132.25,7.5639]
[1743150130824,0.04802195,132.27,132.24,2.13098027]
[1743150131223,7.5643,132.25,132.24,2.13098027]
[1743150131628,0.04802195,132.27,132.24,2.13098027]
[1743150131830,7.5643,132.25,132.24,2.13098027]
[1743150132731,7.5643,132.25,132.24,0.05628027]
[1743150136230,7.5671,132.2,132.19,31.06916669]
[1743150136624,28.96,132.21,132.19,31.06916669]
[1743150137233,36.57542395,132.21,132.19,31.12317545]
[1743150137427,29.00852395,132.21,132.19,31.12317545]
[1743150137730,25.79162395,132.21,132.19,7.62150876]
[1743150137932,25.79162395,132.21,132.19,0.05400876]
[1743150138130,0.04852395,132.21,132.19,0.05400876]
[1743150138331,36.5249,132.24,132.2,7.5666]
[1743150138936,7.5655,132.23,132.19,7.62150876]
[1743150139137,28.96,132.24,132.19,7.62150876]
[1743150139530,7.566,132.22,132.19,7.62150876]
[1743150139935,7.61406434,132.23,132.2,7.5671]
[1743150140332,7.61406434,132.23,132.19,0.05400876]
[1743150140333,0.04836434,132.23,132.19,0.05400876]
[1743150141037,7.61406434,132.23,132.2,7.5668]
[1743150141238,0.04836434,132.23,132.19,0.05400876]
[1743150141633,0.04836434,132.23,132.22,7.566]
[1743150142139,28.96,132.27,132.22,15.11598652]
[1743150142340,379.11598652,132.33,132.24,15.11598652]
[1743150142526,28.96,132.32,132.24,15.11598652]
[1743150143041,0.04935401,132.29,132.27,7.6181962]
[1743150143638,0.04935401,132.29,132.27,0.0551962]
[1743150143841,28.96,132.28,132.27,0.0551962]
[1743150144340,36.5225,132.28,132.27,0.0551962]
[1743150149756,36.57185401,132.29,132.27,0.0551962]
[1743150150249,0.04935401,132.29,132.27,0.0551962]
[1743150151261,7.5625,132.28,132.27,0.0551962]
[1743150151455,0.04935401,132.29,132.27,0.0551962]
[1743150151855,0.04935401,132.29,132.28,7.5625]
[1743150152056,0.04935401,132.29,132.27,0.0551962]
[1743150152566,7.61165401,132.29,132.27,0.0551962]
[1743150152756,0.04935401,132.29,132.27,0.0551962]
[1743150154058,7.5625,132.28,132.27,0.0551962]
[1743150156559,7.61135401,132.29,132.27,0.0551962]
[1743150157761,7.61135401,132.29,132.27,7.6179962]
[1743150158362,0.04935401,132.29,132.27,7.6179962]
[1743150158564,15.11598652,132.35,132.27,0.0551962]
[1743150158759,28.96,132.34,132.28,1.937]
[1743150159263,28.96,132.34,132.29,7.5614]
[1743150159463,28.96,132.34,132.28,1.937]
[1743150159663,7.5612,132.31,132.28,9.499]
[1743150159864,7.5612,132.31,132.3,0.05743135]
[1743150161664,7.61580409,132.32,132.3,0.05743135]
[1743150163268,0.05530409,132.32,132.3,0.05743135]
[1743150163766,0.05530409,132.32,132.31,7.5608]
[1743150166973,0.05530409,132.32,132.3,15.17341787]
[1743150168870,0.05530409,132.32,132.31,7.5608]
[1743150170174,379.11598652,132.39,132.31,36.5]
[1743150170175,7.5574,132.37,132.31,36.5]
[1743150170378,28.94,132.39,132.32,15.11598652]
[1743150170576,28.94,132.39,132.35,7.5582]
[1743150171270,0.04861032,132.38,132.36,0.05313158]
[1743150171774,0.04861032,132.38,132.36,7.61063158]
[1743150171968,0.04861032,132.38,132.36,0.05313158]
[1743150175679,0.04861032,132.38,132.36,7.61063158]
[1743150176775,7.5574,132.37,132.36,0.05313158]
[1743150181279,7.5574,132.37,132.36,3.158e-05]
[1743150181584,22.67598652,132.37,132.29,2.023]
[1743150181879,45.9914,132.39,132.28,314.12253364]
[1743150181880,15.11598652,132.34,132.28,314.12253364]
[1743150182081,28.92,132.33,132.28,54.95883364]
[1743150182580,7.5618,132.3,132.29,0.05058875]
[1743150183781,0.05563896,132.32,132.29,0.05058875]
[1743150184384,0.05563896,132.32,132.3,7.5611]
[1743150184582,0.05563896,132.32,132.29,0.05058875]
[1743150184782,0.05563896,132.32,132.29,15.16657527]
[1743150184980,0.05563896,132.32,132.31,7.5608]
[1743150185287,0.05563896,132.32,132.29,0.05058875]
[1743150185582,7.61623896,132.32,132.29,7.61228875]
[1743150186176,7.5609,132.31,132.29,7.61228875]
[1743150186678,7.61623896,132.32,132.3,7.5613]
[1743150186876,0.05563896,132.32,132.29,0.05058875]
[1743150187984,7.5609,132.31,132.29,0.05058875]
[1743150188686,7.5614,132.3,132.29,0.05058875]
[1743150189982,0.05563896,132.32,132.29,0.05058875]
[1743150191085,7.5608,132.31,132.29,0.05058875]
[1743150192185,7.5614,132.3,132.29,0.05058875]
[1743150194385,36.4814,132.3,132.29,0.05058875]
[1743150198387,36.4814,132.3,132.29,8.875e-05]
[1743150198588,36.4814,132.3,132.23,2.1415]
[1743150198589,7.5644,132.25,132.22,249.36]
[1743150198782,28.92,132.27,132.21,9.6554]
[1743150199088,7.5652,132.24,132.21,7.5662]
[1743150199288,7.5652,132.24,132.21,38.86691269]
[1743150199487,28.92,132.26,132.21,38.86691269]
[1743150199695,7.61824502,132.24,132.21,38.91599322]
[1743150200091,7.566,132.22,132.21,31.34979322]
[1743150201082,28.92,132.23,132.21,0.04908053]
[1743150202087,15.11598652,132.22,132.17,31.30071269]
[1743150202592,7.5674,132.2,132.17,38.86931269]
[1743150202797,28.92,132.2,132.17,31.30071269]
[1743150203294,28.97184842,132.2,132.17,31.3573981]
[1743150203689,36.53924842,132.2,132.17,7.62508541]
[1743150203889,28.97184842,132.2,132.17,0.05668541]
[1743150204292,28.97184842,132.2,132.18,7.568]
[1743150205093,36.53914842,132.2,132.18,7.568]
[1743150205692,28.97184842,132.2,132.18,7.568]
[1743150206096,28.97184842,132.2,132.19,7.5677]
[1743150208605,28.97184842,132.2,132.18,7.568]
[1743150208802,28.97184842,132.2,132.17,0.05668541]
[1743150209799,28.97184842,132.2,132.19,7.5677]
[1743150210005,0.05184842,132.2,132.19,7.5677]
[1743150210205,0.05184842,132.2,132.17,0.05668541]
[1743150210405,0.05184842,132.2,132.18,7.5679]
[1743150210801,0.05184842,132.2,132.17,0.05668541]
[1743150210997,0.05184842,132.2,132.19,7.5677]
[1743150213906,7.5645,132.25,132.22,7.5658]
[1743150214202,28.92,132.25,132.22,7.5658]
[1743150214901,28.92,132.25,132.21,7.5663]
[1743150215103,28.97638411,132.25,132.22,0.05436407]
[1743150215301,7.5651,132.24,132.22,0.05436407]
[1743150215502,28.97638411,132.25,132.22,0.05436407]
[1743150215704,0.05638411,132.25,132.22,0.05436407]
[1743150215903,28.92,132.24,132.22,0.05436407]
[1743150216902,7.5654,132.23,132.22,0.05436407]
[1743150225802,9.69071197,132.23,132.16,126.47509183]
[1743150226000,28.92,132.24,132.16,126.47509183]
[1743150226001,9.69071197,132.21,132.16,134.04419183]
[1743150226308,38.61071197,132.21,132.16,126.47509183]
[1743150226707,28.92,132.21,132.19,9.69071197]
[1743150226907,28.92,132.21,132.18,9.69071197]
[1743150227107,28.96809721,132.21,132.19,0.05280518]
[1743150227313,36.53469721,132.21,132.19,0.05280518]
[1743150228814,36.53469721,132.21,132.19,7.62040518]
[1743150229315,0.04809721,132.21,132.2,7.5671]
[1743150230212,0.04809721,132.21,132.19,9.74351715]
[1743150230512,7.5671,132.2,132.19,0.05280518]
[1743150230715,0.04809721,132.21,132.19,0.05280518]
[1743150231106,7.61499721,132.21,132.19,0.05280518]
[1743150233714,7.61499721,132.21,132.19,7.62040518]
[1743150236017,7.61499721,132.21,132.19,0.05280518]
[1743150236719,7.5671,132.2,132.19,0.05280518]
[1743150237220,17.25781197,132.2,132.19,0.05280518]
[1743150239309,7.5677,132.19,132.18,1.981e-05]
[1743150239518,17.25841197,132.19,132.18,1.981e-05]
[1743150239715,9.69071197,132.19,132.17,19.7356325]
[1743150239912,46.15901197,132.18,132.17,19.7356325]
[1743150240318,38.59071197,132.18,132.15,19.7356325]
[1743150240519,17.25951197,132.17,132.16,0.05365944]
[1743150243517,9.74649081,132.18,132.16,0.05365944]
[1743150243718,28.9,132.17,132.16,0.05365944]
[1743150244317,28.9,132.17,132.16,7.62305944]
[1743150244517,28.9,132.17,132.16,0.05365944]
[1743150246126,36.4688,132.17,132.16,0.05365944]
[1743150247425,364.0,132.16,132.1,82.57336717]
[1743150247619,364.0,132.16,132.04,490.97648586]
[1743150247620,32.38071197,132.11,132.04,490.97648586]
[1743150247825,9.69071197,132.08,132.07,233.54955156]
[1743150248023,46.16471197,132.08,132.07,222.17255156]
[1743150248327,46.16471197,132.08,132.07,91.94105385]
[1743150249028,46.16471197,132.08,132.07,68.48815385]
[1743150249333,46.16471197,132.08,132.07,40.58635385]
[1743150249630,46.16471197,132.08,132.07,13.15975385]
[1743150250329,7.5746,132.07,132.06,347.40302471]
[1743150250530,7.5746,132.07,132.06,170.15302297]
[1743150250730,7.5746,132.07,132.06,158.66292297]
[1743150250931,22.76340272,132.07,132.06,91.80889845]
[1743150251125,22.76340272,132.07,132.06,66.15779845]
[1743150251320,22.76340272,132.07,132.06,29.24609845]
[1743150251521,22.76340272,132.07,132.06,4.87779845]
[1743150251726,22.76340272,132.07,132.06,0.05067726]
[1743150251928,22.76340272,132.07,132.06,7.726e-05]
[1743150252939,7.5746,132.07,132.06,7.726e-05]
[1743150254042,326.18639051,132.07,132.06,7.726e-05]
[1743150255241,7.5754,132.06,131.99,22.76790272]
[1743150255436,28.92,132.05,132.0,7.5786]
[1743150255834,28.92,132.05,132.0,2.0611]
[1743150256342,28.92,132.05,132.01,22.76670272]
[1743150256535,0.04990794,132.04,132.01,22.82075765]
[1743150256838,0.04990794,132.04,132.01,15.24285765]
[1743150257440,44.80187407,132.04,132.01,15.24285765]
[1743150257641,44.80187407,132.04,132.01,22.82075765]
[1743150259445,10.43329926,132.04,132.01,22.82075765]
[1743150259737,10.43329926,132.04,132.02,7.5774]
[1743150260443,10.43329926,132.04,132.01,5.90561039]
[1743150260942,10.43329926,132.04,132.01,13.48311039]
[1743150261143,10.43329926,132.04,132.01,5.90561039]
[1743150261644,42.34123883,132.03,132.01,5.90561039]
[1743150262246,42.34123883,132.03,132.02,7.5773]
[1743150262742,42.34123883,132.03,132.01,13.48331039]
[1743150263344,67.35033773,132.03,132.01,13.48331039]
[1743150263644,67.35033773,132.03,132.0,17.24990272]
[1743150264444,83.06713061,132.03,132.02,7.5774]
[1743150265939,0.04990794,132.04,132.02,7.5774]
[1743150267147,7.62650794,132.04,132.02,15.14]
[1743150268346,30.30818027,132.03,132.02,15.14]
[1743150268846,30.30818027,132.03,132.02,22.7174]
[1743150269952,40.68669156,132.03,132.02,22.7174]
[1743150273248,10.42841923,132.04,132.02,22.7174]
[1743150273958,10.42841923,132.04,132.03,7.5769]
[1743150274151,10.42841923,132.04,132.03,17.29487679]
[1743150275543,64.19150159,132.04,132.03,17.29487679]
[1743150275744,93.78867865,132.04,132.03,9.71797679]
[1743150276255,101.36497865,132.04,132.03,9.71797679]
[1743150276555,93.78867865,132.04,132.03,9.71797679]
[1743150277056,113.41962331,132.04,132.03,9.71797679]
[1743150277256,113.41962331,132.04,132.02,9.71797679]
[1743150278244,113.41962331,132.04,132.02,17.29497679]
[1743150278453,113.41962331,132.04,132.02,9.77274346]
[1743150278750,322.14581674,132.03,132.02,9.77274346]
[1743150278950,322.14581674,132.03,132.02,9.71797679]
[1743150279857,238.73699713,132.03,132.02,9.71797679]
[1743150280057,238.73699713,132.03,132.02,17.29507679]
[1743150280557,238.73699713,132.03,132.02,32.43507679]
[1743150280851,246.31389713,132.03,132.02,15.14]
[1743150282151,84.29803466,132.04,132.02,28.94]
[1743150282355,311.12170601,132.06,132.03,9.71797679]
[1743150282656,311.12170601,132.06,132.01,9.77318824]
[1743150282657,311.12170601,132.06,132.05,9.71797679]
[1743150283857,311.12170601,132.06,132.05,17.29367679]
[1743150285358,0.05058234,132.07,132.05,17.29367679]
[1743150285862,0.05058234,132.07,132.06,7.5751]
[1743150286960,0.05058234,132.07,132.06,17.29307679]
[1743150287562,0.05058234,132.07,132.06,75.97939577]
[1743150288356,0.05058234,132.07,132.06,68.40429577]
[1743150289257,0.05058234,132.07,132.06,344.95359951]
[1743150290062,0.05058234,132.07,132.06,335.23562272]
[1743150291063,0.05058234,132.07,132.06,342.81072272]
[1743150292266,0.05058234,132.07,132.06,335.23562272]
[1743150293058,0.05058234,132.07,132.06,282.02238049]
[1743150293967,0.05058234,132.07,132.06,289.59748049]
[1743150294358,0.05058234,132.07,132.06,299.31545728]
[1743150294557,0.05058234,132.07,132.06,256.26536809]
[1743150296662,0.05058234,132.07,132.06,117.18897516]
[1743150299162,0.05058234,132.07,132.06,107.47099837]
[1743150300171,46.26315913,132.07,132.06,99.89589837]
[1743150300471,46.26315913,132.07,132.06,80.46339837]
[1743150302572,7.5757,132.05,132.04,0.04959759]
[1743150302768,17.29367679,132.05,132.04,0.04959759]
[1743150302966,7.5752,132.06,132.04,0.04959759]
[1743150303873,7.5752,132.06,132.05,6.89626208]
[1743150306676,17.29317679,132.06,132.05,6.89626208]
[1743150309276,7.5757,132.05,132.04,0.04959759]
[1743150309476,17.29367679,132.05,132.04,0.04959759]
[1743150309669,7.5769,132.03,132.02,31.58994939]
[1743150309874,38.63797679,132.03,131.99,126.3916928]
[1743150310073,9.71797679,132.0,131.99,126.3916928]
[1743150310280,46.21657679,132.0,131.99,126.3916928]
[1743150311981,7.5792,131.99,131.98,0.05264497]
[1743150312171,17.29717679,131.99,131.98,0.05264497]
[1743150312371,9.71797679,131.99,131.93,9.71797679]
[1743150312572,9.71797679,131.97,131.93,9.71797679]
[1743150312777,38.63797679,131.97,131.94,7.5815]
[1743150312980,28.92,131.97,131.94,7.5815]
[1743150313175,613.94,132.05,131.97,7.58]
[1743150313377,9.71797679,132.0,131.97,7.58]
[1743150313570,28.92,131.99,131.97,7.58]
[1743150313775,28.92,131.99,131.96,17.29857679]
[1743150313983,28.97804641,131.99,131.96,7.5806]
[1743150314185,36.55734641,131.99,131.96,7.5806]
[1743150314585,36.55734641,131.99,131.95,17.29917679]
[1743150314781,46.2753232,131.99,131.95,17.29917679]
[1743150314984,46.2753232,131.99,131.95,7.5812]
[1743150315283,46.2753232,131.99,131.96,7.5808]
[1743150318187,9.71797679,131.98,131.93,9.71797679]
[1743150318491,9.71797679,131.97,131.92,9.71797679]
[1743150318693,36.5011,131.96,131.93,7.5823]
[1743150319081,36.5011,131.96,131.92,9.71797679]
[1743150319289,36.5011,131.96,131.93,7.5822]
[1743150320286,46.21907679,131.96,131.93,7.5822]
[1743150321182,9.71797679,131.94,131.89,9.71797679]
[1743150321490,28.92,131.93,131.89,9.71797679]
[1743150321788,36.55163763,131.93,131.9,7.584]
[1743150322087,28.96863763,131.93,131.9,9.71797679]
[1743150322290,36.55123763,131.93,131.91,7.5836]
[1743150322586,28.96863763,131.93,131.91,7.5836]
[1743150323690,28.96863763,131.93,131.9,17.30207679]
[1743150323899,38.68661442,131.93,131.89,9.71797679]
[1743150324395,38.68661442,131.93,131.87,4.0045]
[1743150324588,9.71797679,131.91,131.86,9.71797679]
[1743150324784,28.92,131.9,131.86,9.71797679]
[1743150324980,28.9753339,131.9,131.86,9.71797679]
[1743150325190,28.9753339,131.9,131.87,9.71797679]
[1743150325787,28.9753339,131.9,131.86,9.71797679]
[1743150326189,28.9753339,131.9,131.87,7.5859]
[1743150326392,28.9753339,131.9,131.86,9.71797679]
[1743150326994,36.5599339,131.9,131.87,7.5857]
[1743150327186,28.9753339,131.9,131.86,9.71797679]
[1743150327391,7.5849,131.89,131.86,17.30427679]
[1743150327592,38.69331069,131.9,131.85,9.71797679]
[1743150327794,38.63797679,131.9,131.85,9.71797679]
[1743150327992,38.63797679,131.9,131.87,7.5856]
[1743150327993,0.0481723,131.89,131.87,7.5856]
[1743150328199,0.0481723,131.89,131.86,9.71797679]
[1743150328496,0.0481723,131.89,131.88,7.5855]
[1743150330992,0.0481723,131.89,131.87,7.5858]
[1743150331190,0.0481723,131.89,131.87,9.71797679]
[1743150331597,28.92,131.91,131.88,9.71797679]
[1743150332102,9.71797679,131.9,131.83,3.9745]
[1743150332291,9.71797679,131.89,131.85,9.71797679]
[1743150332593,9.71797679,131.89,131.86,0.05607323]
[1743150332793,0.05629279,131.88,131.86,0.05607323]
[1743150334393,28.99629279,131.88,131.86,0.05607323]
[1743150335399,36.58209279,131.88,131.86,0.05607323]
[1743150336105,7.5861,131.87,131.86,0.05607323]
[1743150336292,28.99629279,131.88,131.86,0.05607323]
[1743150336491,36.58209279,131.88,131.86,0.05607323]
[1743150338000,7.5861,131.87,131.86,0.05607323]
[1743150338401,17.30407679,131.87,131.86,0.05607323]
[1743150340905,7.5861,131.87,131.86,0.05607323]
[1743150346501,17.30407679,131.87,131.86,0.05607323]
[1743150347003,7.5878,131.84,131.83,2.039]
[1743150347203,38.65797679,131.85,131.8,261.85787679]
[1743150347708,7.5887,131.83,131.8,13.91527679]
[1743150348207,0.05360272,131.83,131.8,13.91527679]
[1743150348508,7.5885,131.83,131.8,13.91527679]
[1743150349104,38.65797679,131.85,131.8,13.91527679]
[1743150349408,7.5892,131.82,131.8,13.91527679]
[1743150349599,7.63808996,131.82,131.81,9.71797679]
[1743150350001,0.04888996,131.82,131.81,9.71797679]
[1743150350201,28.94,131.85,131.81,9.71797679]
[1743150350406,28.94,131.85,131.83,9.71797679]
[1743150351006,28.94,131.85,131.73,418.0]
[1743150351007,364.0,131.83,131.61,371.23523971]
[1743150351206,22.76,131.65,131.57,400.89833887]
[1743150351504,31.24,131.66,131.63,9.71797679]
[1743150351808,364.0,131.81,131.57,379.21772303]
[1743150351809,31.44,131.73,131.65,9.71797679]
[1743150352104,9.71797679,131.71,131.66,4.1476]
[1743150352308,9.71797679,131.71,131.66,4.0876]
[1743150352710,0.05553477,131.7,131.67,0.0558252]
[1743150354006,0.05553477,131.7,131.68,71.71797679]
[1743150354313,31.46,131.72,131.68,71.71797679]
[1743150354503,31.44,131.74,131.7,9.71797679]
[1743150355002,31.44,131.74,131.68,15.25374172]
[1743150355204,31.44,131.74,131.7,15.25374172]
[1743150355407,31.42,131.77,131.7,15.30516532]
[1743150355710,31.42,131.77,131.7,22.84954172]
[1743150356012,31.42,131.77,131.68,46.67374172]
[1743150356402,126.53902789,131.76,131.7,15.25374172]
[1743150356606,126.53902789,131.76,131.71,0.05446408]
[1743150356607,0.0571996,131.74,131.71,0.05446408]
[1743150357608,0.0571996,131.74,131.72,62.0]
[1743150357811,0.0571996,131.74,131.71,0.05446408]
[1743150358314,126.53902789,131.73,131.71,0.05446408]
[1743150358612,126.53902789,131.73,131.69,15.25374172]
[1743150358813,126.53902789,131.73,131.72,62.0]
[1743150359013,123.31032789,131.73,131.72,62.0]
[1743150359216,113.62372789,131.73,131.72,69.5947]
[1743150359513,38.37516015,131.75,131.72,62.0]
[1743150359716,0.05405971,131.74,131.72,15.25374172]
[1743150360112,0.05405971,131.74,131.73,7.5937]
[1743150361016,144.36913437,131.74,131.73,7.5937]
[1743150361216,129.47533437,131.74,131.73,15.25374172]
[1743150361711,226.66773951,131.74,131.73,15.25374172]
[1743150363109,214.80103951,131.74,131.73,22.84744172]
[1743150363713,214.80103951,131.74,131.73,84.84744172]
[1743150364110,214.80103951,131.74,131.73,62.0]
[1743150364311,214.80103951,131.74,131.73,15.25374172]
[1743150364714,203.12783951,131.74,131.73,15.25374172]
[1743150364919,31.22,131.8,131.73,15.25374172]
[1743150366124,0.05724898,131.78,131.75,15.30453791]
[1743150366819,0.05724898,131.78,131.74,15.25374172]
[1743150367020,34.85635039,131.79,131.74,15.25374172]
[1743150367818,34.85635039,131.79,131.7,2.1306]
[1743150367819,31.17590468,131.79,131.76,15.25374172]
[1743150368015,0.05020291,131.78,131.76,15.25374172]
[1743150368417,0.05020291,131.78,131.77,7.5918]
[1743150368617,0.05020291,131.78,131.76,5.8986022]
[1743150369227,0.05020291,131.78,131.77,7.5918]
[1743150369624,2.91e-06,131.78,131.77,7.5918]
[1743150370027,8.25840759,131.79,131.78,7.5912]
[1743150370227,8.25840759,131.79,131.78,22.84494172]
[1743150370525,30.9,131.82,131.81,7.5895]
[1743150370719,30.9,131.82,131.77,2.1235]
[1743150371121,0.05577556,131.81,131.8,7.5898]
[1743150371319,30.86,131.81,131.8,7.5898]
[1743150375435,0.05678292,131.82,131.81,7.5895]
[1743150375825,30.68,131.84,131.8,185.84891942]
[1743150376127,30.59048384,131.84,131.83,7.5884]
[1743150376823,30.59048384,131.84,131.82,208.79569342]
[1743150376824,30.6940474,131.85,131.82,208.85133934]
[1743150377835,30.6940474,131.85,131.84,125.29107332]
[1743150378237,30.6940474,131.85,131.84,132.87887332]
[1743150378437,30.6340474,131.85,131.84,132.87887332]
[1743150378726,30.6340474,131.85,131.84,125.29107332]
[1743150379037,30.6340474,131.85,131.84,60.72651332]
[1743150380231,38.2212474,131.85,131.84,52.55401332]
[1743150380428,38.2212474,131.85,131.84,17.92620467]
[1743150380729,7.5878,131.84,131.83,83.55859298]
[1743150380936,22.84154172,131.84,131.83,83.55859298]
[1743150381429,15.25374172,131.84,131.83,83.55859298]
[1743150381629,38.2213474,131.85,131.83,83.55859298]
[1743150382031,38.2213474,131.85,131.82,7.64424592]
[1743150382826,30.6340474,131.85,131.83,7.5882]
[1743150383333,38.2213474,131.85,131.82,7.64434592]
[1743150383947,7.5879,131.84,131.82,0.05564592]
[1743150384343,15.25374172,131.84,131.82,0.05564592]
[1743150385050,15.25374172,131.84,131.78,7.5909]
[1743150385051,7.5898,131.81,131.78,7.5909]
[1743150385246,30.38,131.8,131.78,7.5909]
[1743150385545,30.38,131.8,131.79,7.5907]
[1743150392057,0.05083465,131.81,131.8,7.5901]
[1743150394556,0.05083465,131.81,131.79,7.5904]
[1743150395058,0.05083465,131.81,131.8,62.0]
[1743150397161,0.05083465,131.81,131.8,69.5901]
[1743150403663,0.05083465,131.81,131.8,62.0]
[1743150404166,7.64033465,131.81,131.8,62.0]
[1743150405964,7.64033465,131.81,131.8,62.0]
[1743150408573,0.05083465,131.81,131.8,62.0]
[1743150410572,0.05083465,131.81,131.8,69.5901]
[1743150410771,29.65083465,131.81,131.8,69.5901]
[1743150410968,29.65083465,131.81,131.8,62.0]
[1743150411674,29.65083465,131.81,131.8,69.5901]
[1743150413075,29.65083465,131.81,131.8,62.0]
[1743150413475,29.65083465,131.81,131.8,69.5901]
[1743150416276,29.65083465,131.81,131.8,62.0]
[1743150417164,29.65083465,131.81,131.8,69.5901]
[1743150417876,29.65083465,131.81,131.8,62.0]
[1743150419776,29.65083465,131.81,131.8,69.5901]
[1743150420078,29.65083465,131.81,131.8,62.0]
[1743150420872,37.24033465,131.81,131.8,62.0]
[1743150421076,29.65083465,131.81,131.8,62.0]
[1743150421274,39.40255758,131.81,131.8,62.0]
[1743150422471,46.99205758,131.81,131.8,62.0]
[1743150422671,39.40255758,131.81,131.8,62.0]
[1743150424381,7.5907,131.79,131.78,0.05777678]
[1743150424575,17.34242293,131.79,131.78,0.05777678]
[1743150428085,17.34242293,131.79,131.78,0.0035871]
[1743150431681,29.06,131.79,131.78,0.0035871]
[1743150432079,29.06,131.79,131.78,7.5945871]
[1743150433486,29.06,131.79,131.78,0.0035871]
[1743150433786,38.81172293,131.79,131.78,0.0035871]
[1743150434083,46.40242293,131.79,131.78,0.0035871]
[1743150436088,38.81172293,131.79,131.78,0.0035871]
[1743150437189,46.40242293,131.79,131.78,0.0035871]
[1743150440901,7.593,131.75,131.74,62.0]
[1743150441201,36.593,131.75,131.74,62.0]
[1743150441397,29.0,131.75,131.74,62.0]
[1743150442805,36.593,131.75,131.74,62.0]
[1743150443704,15.1757,131.84,131.74,71.75172293]
[1743150443905,9.75172293,131.8,131.75,17.34412293]
[1743150444108,9.75172293,131.8,131.75,9.75172293]
[1743150444403,7.5912,131.79,131.76,7.5923]
[1743150444605,38.75172293,131.8,131.75,9.75172293]
[1743150444907,0.05754407,131.79,131.77,7.5915]
[1743150447203,0.05754407,131.79,131.78,7.5912]
[1743150447810,0.05754407,131.79,131.78,17.34292293]
[1743150448305,0.05754407,131.79,131.78,9.75172293]
[1743150448806,0.05754407,131.79,131.78,17.34292293]
[1743150449007,0.05754407,131.79,131.78,9.75172293]
[1743150452609,0.05754407,131.79,131.77,9.75172293]
[1743150453111,0.05754407,131.79,131.77,17.34342293]
[1743150453610,0.05754407,131.79,131.77,9.75172293]
[1743150456200,7.64824407,131.79,131.77,9.75172293]
[1743150456407,9.75172293,131.78,131.76,0.05021001]
[1743150456614,9.75172293,131.77,131.76,0.05021001]
[1743150456909,7.5947,131.72,131.7,87.53739298]
[1743150457110,36.5947,131.72,131.7,87.53739298]
[1743150457810,7.5953,131.71,131.7,87.53739298]
[1743150458601,7.5953,131.71,131.7,83.55859298]
[1743150459413,7.5959,131.7,131.69,3.8044]
[1743150460006,7.5955,131.71,131.69,3.8044]
[1743150463506,7.5955,131.71,131.69,11.4008]
[1743150463711,29.04814098,131.72,131.69,13.55612293]
[1743150464016,29.04814098,131.72,131.7,9.75172293]
[1743150464211,36.64314098,131.72,131.69,13.55612293]
[1743150465719,36.64314098,131.72,131.7,7.5957]
[1743150466116,36.64314098,131.72,131.7,17.34742293]
[1743150466718,29.04814098,131.72,131.7,17.34742293]
[1743150466918,29.0,131.75,131.71,9.75172293]
[1743150467117,29.0,131.75,131.73,9.75172293]
[1743150467319,36.5934,131.75,131.72,17.34612293]
[1743150467719,29.0,131.75,131.72,17.34612293]